fUSD/lending_fUSD_20251220
["ID","MTS","AMOUNT","RATE_DAILY","PERIOD"]
[399275276,1766227845743,-151.0,0.00016802,2]
[399275278,1766227845754,-151.0,0.00016802,2]
[399275279,1766227845766,-189.61975,0.00016802,2]
[399275280,1766227845777,-500.0,0.00016847,2]
[399275281,1766227845789,-198.63978603,0.00016848,2]
[399275282,1766227845803,-1000.0,0.00016848,2]
[399275283,1766227845815,-500.0,0.00016848,2]
[399275284,1766227845826,-150.0,0.00016849,2]
[399275285,1766227845838,-150.0,0.00016849,2]
[399275286,1766227845849,-150.0,0.00016849,2]
[399275287,1766227845861,-500.0,0.00016849,2]
[399275288,1766227845872,-500.0,0.00016849,2]
[399275289,1766227845884,-194.17176914,0.00016849,2]
[399275290,1766227845894,-500.0,0.00016849,2]
[399275291,1766227845905,-500.0,0.00016849,2]
[399275292,1766227845916,-150.0,0.00016849,2]
[399275293,1766227845927,-500.0,0.00016849,2]
[399275294,1766227845938,-500.0,0.00016849,2]
[399275295,1766227845949,-150.0,0.00016849,2]
[399275296,1766227845959,-150.0,0.00016849,2]
[399275297,1766227845970,-613.0,0.00016849,2]
[399275298,1766227845984,-500.0,0.00016849,2]
[399275299,1766227845997,-500.0,0.00016849,2]
[399275300,1766227846009,-500.0,0.00016849,2]
[399275301,1766227846021,-500.0,0.00016849,2]
[399275302,1766227846033,-150.0,0.00016849,2]
[399275303,1766227846044,-150.0,0.00016849,2]
[399275304,1766227846056,-500.0,0.00016849,2]
[399275305,1766227846068,-805.0,0.00016849,2]
[399275306,1766227846081,-500.0,0.00016849,2]
[399275307,1766227846093,-528.93385388,0.00016849,2]
[399275308,1766227846103,-200.0,0.00016864,2]
[399275309,1766227846115,-1600.0,0.00016871,2]
[399275310,1766227846127,-217.8076658,0.00016896,2]
[399275311,1766227846139,-500.0,0.00016896,2]
[399275312,1766227846151,-10000.0,0.000169,2]
[399275313,1766227846163,-22156.09025428,0.000169,2]
[399275314,1766227846175,-994.91164638,0.000169,2]
[399275315,1766227846187,-181.47081457,0.000169,2]
[399275316,1766227846199,-170.00069611,0.000169,2]
[399275317,1766227846211,-166.66,0.00016906,2]
[399275318,1766227846222,-2000.0,0.00016913,2]
[399275319,1766227846234,-200.0,0.00016913,2]
[399275320,1766227846246,-578.0,0.00016957,2]
[399275321,1766227846258,-151.0,0.0001697,2]
[399275322,1766227846269,-311.1,0.0001697,2]
[399275323,1766227846281,-287.61899177,0.0001697,2]
[399275324,1766227846293,-200.0,0.00016973,2]
[399275325,1766227846303,-200.0,0.00016986,2]
[399275326,1766227846313,-200.0,0.00016986,2]
[399275327,1766227846324,-200.0,0.00016986,2]
[399275328,1766227846334,-500.0,0.00016986,2]
[399275329,1766227846344,-500.0,0.00016986,2]
[399275330,1766227846355,-500.0,0.00016986,2]
[399275331,1766227846366,-353.74835527,0.00016986,2]
[399275332,1766227846377,-151.21834691,0.00016986,2]
[399275333,1766227846389,-500.0,0.00016986,2]
[399275334,1766227846400,-200.0,0.00016986,2]
[399275335,1766227846411,-150.0,0.00016986,2]
[399275336,1766227846422,-250.0,0.00016986,2]
[399275337,1766227846433,-613.0,0.00016986,2]
[399275338,1766227846445,-500.0,0.00016986,2]
[399275339,1766227846458,-500.0,0.00016986,2]
[399275340,1766227846469,-500.0,0.00016986,2]
[399275341,1766227846485,-500.0,0.00016986,2]
[399275342,1766227846496,-250.0,0.00016986,2]
[399275343,1766227846506,-150.0,0.00016986,2]
[399275344,1766227846516,-500.0,0.00016986,2]
[399275345,1766227846527,-805.0,0.00016986,2]
[399275346,1766227846537,-500.0,0.00016986,2]
[399275347,1766227846547,-151.0,0.00016986,2]
[399275348,1766227846560,-500.0,0.00016986,2]
[399275349,1766227846571,-500.0,0.00016986,2]
[399275350,1766227846581,-151.0,0.00016986,2]
[399275351,1766227846593,-232.026225,0.00016986,2]
[399275352,1766227846603,-151.0,0.00016986,2]
[399275353,1766227846613,-151.0,0.00016986,2]
[399275354,1766227846623,-151.0,0.00016986,2]
[399275355,1766227846634,-151.0,0.00016986,2]
[399275356,1766227846646,-263.982921,0.00016986,2]
[399275357,1766227846658,-188.1771,0.00016986,2]
[399275358,1766227846668,-188.1771,0.00016986,2]
[399275359,1766227846678,-188.1771,0.00016986,2]
[399275360,1766227846688,-188.1771,0.00016986,2]
[399275361,1766227846698,-257.586957,0.00016986,2]
[399275362,1766227846709,-257.586957,0.00016986,2]
[399275363,1766227846719,-257.586957,0.00016986,2]
[399275364,1766227846730,-257.586957,0.00016986,2]
[399275365,1766227846740,-151.0,0.00016986,2]
[399275366,1766227846750,-194.171323,0.00016986,2]
[399275367,1766227846760,-257.040368,0.00016986,2]
[399275368,1766227846771,-151.0,0.00016986,2]
[399275369,1766227846781,-151.0,0.00016986,2]
[399275370,1766227846791,-151.0,0.00016986,2]
[399275371,1766227846801,-214.887714,0.00016986,2]
[399275372,1766227846813,-151.0,0.00016986,2]
[399275373,1766227846824,-151.0,0.00016986,2]
[399275374,1766227846836,-151.0,0.00016986,2]
[399275375,1766227846848,-332599.92,0.00016986,2]
[399275376,1766227846861,-150.0,0.00016986,2]
[399275377,1766227846873,-775.07178342,0.0001699,2]
[399275378,1766227846887,-775.07178342,0.0001699,2]
[399275379,1766227846899,-220.0,0.00016992,2]
[399275380,1766227846909,-500.0,0.00016999,2]
[399275381,1766227846920,-500.0,0.00016999,2]
[399275382,1766227846932,-500.0,0.00016999,2]
[399275383,1766227846943,-630.0,0.00016999,2]
[399275384,1766227846955,-248999.23904025,0.00017,2]
[399275385,1766227846966,-156541.94068085,0.00017,2]
[399275386,1766227846977,-150.0,0.00017,7]
[399275387,1766227846991,-7032.30254333,0.00017,2]
[399275388,1766227847004,-772163.2757667,0.00017,2]
[399275389,1766227847356,-211.0,0.00013448,2]
[399275390,1766227847367,-336.20580245,0.000159,2]
[399275393,1766227847434,-26476.97333308,0.00016432,2]
[399275395,1766227847444,-97315.88295822,0.00017,2]
[399275397,1766227847456,-5366.39459187,0.00017,2]
[399275409,1766227847652,-290.00245626,0.000159,2]
[399275411,1766228613981,999.0,0.00012839,3]
[399275420,1766229031822,-150.0,0.00012489,2]
[399275421,1766229031832,-375.74328535,0.0001249,2]
[399275422,1766229031843,-1337.70986208,0.0001249,2]
[399275423,1766229031854,-1257.02204758,0.0001249,2]
[399275424,1766229031865,-306.0,0.0001249,2]
[399275425,1766229031928,-11227.81887426,0.0001249,2]
[399275426,1766229031939,-398.75464439,0.0001249,2]
[399275427,1766229032283,-1005.3639732,0.0001249,2]
[399275428,1766229032295,-298.1025574,0.0001249,2]
[399275429,1766229032307,-500.0,0.0001249,2]
[399275430,1766229032338,-236.04500002,0.00012489,2]
[399275431,1766229032348,-205.25999998,0.0001249,2]
[399275432,1766229032359,-5610.104616,0.0001249,2]
[399275438,1766229038096,-977478.12013976,0.0001249,2]
[399275440,1766229038106,-24315.1253,0.0001259,2]
[399275442,1766229038116,-38651.0091,0.0001259,2]
[399275443,1766229038126,-150.0,0.000126,2]
[399275444,1766229038135,-1591.28,0.00012682,2]
[399275445,1766229038145,-200.0,0.00012683,2]
[399275446,1766229038154,-200.0,0.00012683,2]
[399275447,1766229038163,-500.0,0.00012683,2]
[399275448,1766229038172,-500.0,0.00012683,2]
[399275449,1766229038182,-500.0,0.00012683,2]
[399275450,1766229038191,-500.0,0.00012683,2]
[399275451,1766229038200,-500.0,0.00012683,2]
[399275452,1766229038209,-500.0,0.00012683,2]
[399275453,1766229038219,-396.0615972,0.00012683,2]
[399275455,1766229038228,-500.0,0.00012683,2]
[399275457,1766229038238,-500.0,0.00012683,2]
[399275458,1766229038247,-500.0,0.00012683,2]
[399275460,1766229038256,-500.0,0.00012683,2]
[399275462,1766229038266,-500.0,0.00012683,2]
[399275464,1766229038276,-500.0,0.00012683,2]
[399275467,1766229038285,-500.0,0.00012683,2]
[399275469,1766229038295,-500.0,0.00012683,2]
[399275470,1766229038305,-500.0,0.00012683,2]
[399275472,1766229038315,-151.0,0.00012683,2]
[399275474,1766229038324,-200.0,0.00012683,2]
[399275477,1766229038334,-151.0,0.00012683,2]
[399275478,1766229038345,-151.0,0.00012683,2]
[399275480,1766229038354,-151.0,0.00012683,2]
[399275483,1766229038364,-151.0,0.00012683,2]
[399275484,1766229038374,-151.0,0.00012683,2]
[399275487,1766229038384,-151.0,0.00012683,2]
[399275489,1766229038394,-151.0,0.00012683,2]
[399275490,1766229038404,-151.0,0.00012683,2]
[399275492,1766229038413,-151.0,0.00012683,2]
[399275494,1766229038423,-151.0,0.00012683,2]
[399275496,1766229038432,-639.72265797,0.0001269,2]
[399275498,1766229038442,-230.21055502,0.0001269,2]
[399275500,1766229038452,-21397.79044777,0.0001269,2]
[399275502,1766229038462,-1000.0,0.00012789,2]
[399275504,1766229038471,-1000.0,0.00012789,2]
[399275506,1766229038480,-1000.0,0.0001279,2]
[399275508,1766229038491,-1000.0,0.00012838,2]
[399275510,1766229038501,-200.0,0.00012896,2]
[399275512,1766229038510,-1591.28,0.00012956,2]
[399275514,1766229038519,-21397.79044773,0.00013158,2]
[399275516,1766229038528,-1000.0,0.00013177,2]
[399275518,1766229038538,-9999.99,0.00013177,2]
[399275520,1766229038548,-150.99,0.00013177,2]
[399275522,1766229038557,-775.07178342,0.0001322,2]
[399275524,1766229038566,-1591.28,0.0001323,2]
[399275526,1766229038575,-3805.42,0.00013231,2]
[399275528,1766229038584,-9999.99,0.00013231,2]
[399275530,1766229038594,-150.99,0.00013231,2]
[399275532,1766229038603,-9999.99,0.00013231,2]
[399275535,1766229038613,-50075.86,0.00013231,2]
[399275536,1766229038623,-200.0,0.00013231,2]
[399275538,1766229038633,-500.0,0.00013231,2]
[399275540,1766229038642,-200.0,0.00013231,2]
[399275542,1766229038651,-639.72265797,0.00013291,2]
[399275544,1766229038660,-229.49,0.00013333,2]
[399275546,1766229038669,-311.0,0.00013377,2]
[399275548,1766229038679,-1591.28,0.00013504,2]
[399275550,1766229038688,-255.0,0.00013588,2]
[399275552,1766229038698,-21397.79044773,0.00013626,2]
[399275555,1766229038707,-500.0,0.00013698,2]
[399275557,1766229038716,-500.0,0.00013698,2]
[399275559,1766229038726,-500.0,0.00013698,2]
[399275561,1766229038735,-500.0,0.00013698,2]
[399275563,1766229038745,-500.0,0.00013698,2]
[399275564,1766229038754,-507.00993058,0.00013698,2]
[399275566,1766229038764,-500.0,0.00013698,2]
[399275568,1766229038773,-500.0,0.00013698,2]
[399275570,1766229038782,-500.0,0.00013698,2]
[399275572,1766229038791,-500.0,0.00013698,2]
[399275574,1766229038800,-500.0,0.00013698,2]
[399275576,1766229038810,-500.0,0.00013698,2]
[399275578,1766229038819,-500.0,0.00013698,2]
[399275580,1766229038828,-500.0,0.00013698,2]
[399275582,1766229038838,-500.0,0.00013698,2]
[399275584,1766229038847,-500.0,0.00013698,2]
[399275586,1766229038856,-500.0,0.00013698,2]
[399275588,1766229038866,-500.0,0.00013698,2]
[399275590,1766229038875,-500.0,0.00013698,2]
[399275592,1766229038885,-500.0,0.00013698,2]
[399275595,1766229038895,-500.0,0.00013698,2]
[399275597,1766229038904,-500.0,0.00013698,2]
[399275599,1766229038917,-500.0,0.00013698,2]
[399275600,1766229038927,-500.0,0.00013698,2]
[399275603,1766229038937,-500.0,0.00013698,2]
[399275605,1766229038947,-500.0,0.00013698,2]
[399275607,1766229038956,-500.0,0.00013698,2]
[399275608,1766229038966,-500.0,0.00013698,2]
[399275610,1766229038975,-500.0,0.00013698,2]
[399275612,1766229038984,-500.0,0.00013698,2]
[399275614,1766229038995,-500.0,0.00013698,2]
[399275617,1766229039006,-462.52746039,0.00013698,2]
[399275618,1766229039016,-500.0,0.00013698,2]
[399275620,1766229039026,-500.0,0.00013698,2]
[399275622,1766229039035,-500.0,0.00013698,2]
[399275624,1766229039045,-500.0,0.00013698,2]
[399275627,1766229039055,-500.0,0.00013698,2]
[399275628,1766229039064,-500.0,0.00013698,2]
[399275630,1766229039073,-500.0,0.00013698,2]
[399275632,1766229039082,-500.0,0.00013698,2]
[399275634,1766229039092,-500.0,0.00013698,2]
[399275635,1766229039102,-500.0,0.00013698,2]
[399275636,1766229039112,-500.0,0.00013698,2]
[399275637,1766229039122,-511.95166241,0.00013698,2]
[399275638,1766229039132,-500.0,0.00013698,2]
[399275639,1766229039141,-500.0,0.00013698,2]
[399275640,1766229039150,-500.0,0.00013698,2]
[399275641,1766229039160,-500.0,0.00013698,2]
[399275642,1766229039169,-500.0,0.00013698,2]
[399275643,1766229039179,-500.0,0.00013698,2]
[399275644,1766229039188,-500.0,0.00013698,2]
[399275645,1766229039198,-500.0,0.00013698,2]
[399275646,1766229039207,-500.0,0.00013698,2]
[399275647,1766229039217,-500.0,0.00013698,2]
[399275648,1766229039226,-500.0,0.00013698,2]
[399275649,1766229039235,-500.0,0.00013698,2]
[399275650,1766229039245,-500.0,0.00013698,2]
[399275651,1766229039254,-500.0,0.00013698,2]
[399275652,1766229039263,-500.0,0.00013698,2]
[399275653,1766229039272,-500.0,0.00013698,2]
[399275654,1766229039281,-500.0,0.00013698,2]
[399275655,1766229039291,-500.0,0.00013698,2]
[399275656,1766229039300,-344.15406571,0.00013698,2]
[399275657,1766229039310,-500.0,0.00013698,2]
[399275658,1766229039319,-500.0,0.00013698,2]
[399275659,1766229039328,-500.0,0.00013698,2]
[399275660,1766229039337,-500.0,0.00013698,2]
[399275661,1766229039346,-500.0,0.00013698,2]
[399275662,1766229039355,-500.0,0.00013698,2]
[399275663,1766229039364,-500.0,0.00013698,2]
[399275664,1766229039373,-500.0,0.00013698,2]
[399275665,1766229039383,-542.9137325,0.00013698,2]
[399275666,1766229039392,-500.0,0.00013698,2]
[399275667,1766229039402,-500.0,0.00013698,2]
[399275668,1766229039411,-500.0,0.00013698,2]
[399275669,1766229039421,-500.0,0.00013698,2]
[399275670,1766229039431,-500.0,0.00013698,2]
[399275671,1766229039440,-500.0,0.00013698,2]
[399275672,1766229039450,-500.0,0.00013698,2]
[399275673,1766229039459,-500.0,0.00013698,2]
[399275674,1766229039468,-500.0,0.00013698,2]
[399275675,1766229039477,-500.0,0.00013698,2]
[399275676,1766229039487,-500.0,0.00013698,2]
[399275677,1766229039496,-500.0,0.00013698,2]
[399275678,1766229039505,-500.0,0.00013698,2]
[399275679,1766229039515,-500.0,0.00013698,2]
[399275680,1766229039524,-500.0,0.00013698,2]
[399275681,1766229039533,-500.0,0.00013698,2]
[399275682,1766229039543,-500.0,0.00013698,2]
[399275683,1766229039552,-500.0,0.00013698,2]
[399275684,1766229039563,-500.0,0.00013698,2]
[399275685,1766229039574,-500.0,0.00013698,2]
[399275686,1766229039586,-500.0,0.00013698,2]
[399275687,1766229039595,-500.0,0.00013698,2]
[399275688,1766229039604,-500.0,0.00013698,2]
[399275689,1766229039613,-500.0,0.00013698,2]
[399275690,1766229039623,-500.0,0.00013698,2]
[399275691,1766229039633,-1000.0,0.00013699,2]
[399275692,1766229039642,-151.34,0.00013699,2]
[399275693,1766229039652,-150.65,0.00013699,2]
[399275694,1766229039661,-152.28,0.00013699,2]
[399275695,1766229039671,-151.6,0.00013699,2]
[399275696,1766229039680,-152.39,0.00013699,2]
[399275697,1766229039691,-151.92,0.00013699,2]
[399275698,1766229039700,-2748.82,0.000137,2]
[399275699,1766229039710,-2748.82,0.000137,2]
[399275700,1766229039720,-2748.82,0.000137,2]
[399275701,1766229039730,-2748.82,0.000137,2]
[399275702,1766229039740,-2748.82,0.000137,2]
[399275703,1766229039749,-2500.0,0.00013738,2]
[399275704,1766229039759,-2500.0,0.00013738,2]
[399275705,1766229039768,-2500.0,0.00013738,2]
[399275706,1766229039777,-2500.0,0.00013738,2]
[399275707,1766229039786,-2500.0,0.00013738,2]
[399275708,1766229039795,-300.0,0.00013738,2]
[399275709,1766229039805,-300.0,0.00013738,2]
[399275710,1766229039815,-300.0,0.00013738,2]
[399275711,1766229039825,-500.0,0.00013744,2]
[399275712,1766229039834,-500.0,0.00013744,2]
[399275713,1766229039843,-500.63598857,0.00013773,2]
[399275714,1766229039852,-172.76817182,0.00013773,2]
[399275715,1766229039861,-500.0,0.00013773,2]
[399275716,1766229039871,-163.10613259,0.00013773,2]
[399275717,1766229039879,-500.0,0.00013773,2]
[399275718,1766229039888,-165.53185787,0.00013773,2]
[399275719,1766229039898,-174.74495914,0.00013773,2]
[399275720,1766229039906,-500.0,0.00013773,2]
[399275721,1766229039920,-224.04773923,0.00013773,2]
[399275722,1766229039929,-176.6683039,0.00013773,2]
[399275723,1766229039938,-235.41291364,0.00013773,2]
[399275724,1766229039947,-166.07222089,0.00013773,2]
[399275725,1766229039957,-163.72295793,0.00013773,2]
[399275726,1766229039966,-500.0,0.00013773,2]
[399275727,1766229039975,-500.0,0.00013773,2]
[399275728,1766229039983,-500.0,0.00013773,2]
[399275729,1766229039992,-172.60476821,0.00013773,2]
[399275730,1766229040001,-500.0,0.00013773,2]
[399275731,1766229040010,-500.0,0.00013773,2]
[399275732,1766229040019,-169.28855325,0.00013773,2]
[399275733,1766229040028,-500.15944449,0.00013773,2]
[399275734,1766229040038,-160.176,0.00013773,2]
[399275735,1766229040047,-500.0,0.00013773,2]
[399275736,1766229040056,-500.0,0.00013773,2]
[399275737,1766229040064,-500.0,0.00013773,2]
[399275738,1766229040073,-515.85064943,0.00013773,2]
[399275739,1766229040082,-500.0,0.00013773,2]
[399275740,1766229040090,-500.0,0.00013773,2]
[399275741,1766229040099,-500.0,0.00013773,2]
[399275742,1766229040108,-500.0,0.00013773,2]
[399275743,1766229040117,-165.7973653,0.00013773,2]
[399275744,1766229040126,-536.13646338,0.00013773,2]
[399275745,1766229040134,-500.0,0.00013773,2]
[399275746,1766229040143,-500.0,0.00013773,2]
[399275747,1766229040153,-500.0,0.00013773,2]
[399275748,1766229040162,-500.0,0.00013773,2]
[399275749,1766229040171,-500.0,0.00013773,2]
[399275750,1766229040180,-500.0,0.00013773,2]
[399275751,1766229040189,-500.0,0.00013773,2]
[399275752,1766229040198,-160.23016142,0.00013773,2]
[399275753,1766229040207,-315.42381846,0.00013773,2]
[399275754,1766229040216,-162.0459649,0.00013773,2]
[399275755,1766229040225,-201.65516925,0.00013773,2]
[399275756,1766229040234,-562.57939524,0.00013773,2]
[399275757,1766229040243,-165.31243658,0.00013773,2]
[399275758,1766229040252,-500.0,0.00013773,2]
[399275759,1766229040261,-500.0,0.00013773,2]
[399275760,1766229040271,-179.50290541,0.00013773,2]
[399275761,1766229040280,-500.0,0.00013773,2]
[399275762,1766229040289,-500.0,0.00013773,2]
[399275763,1766229040298,-500.0,0.00013773,2]
[399275764,1766229040307,-500.0,0.00013773,2]
[399275765,1766229040316,-500.0,0.00013773,2]
[399275766,1766229040325,-162.87078705,0.00013773,2]
[399275767,1766229040334,-216.27337885,0.00013773,2]
[399275768,1766229040343,-168.59999571,0.00013773,2]
[399275769,1766229040352,-1591.28,0.00013778,2]
[399275770,1766229040361,-200.0,0.00013779,2]
[399275771,1766229040370,-500.0,0.00013779,2]
[399275772,1766229040379,-200.0,0.00013779,2]
[399275773,1766229040388,-500.0,0.00013787,2]
[399275774,1766229040397,-500.0,0.00013787,2]
[399275775,1766229040406,-500.0,0.00013787,2]
[399275776,1766229040416,-500.0,0.00013787,2]
[399275777,1766229040426,-300.0,0.00013848,2]
[399275778,1766229040436,-151.4761841,0.00013848,2]
[399275779,1766229040445,-300.0,0.00013849,2]
[399275780,1766229040454,-300.0,0.00013849,2]
[399275781,1766229040463,-300.0,0.00013849,2]
[399275782,1766229040472,-300.0,0.00013849,2]
[399275783,1766229040482,-370.40341196,0.00013849,2]
[399275784,1766229040491,-300.0,0.00013849,2]
[399275785,1766229040501,-302.26771089,0.00013849,2]
[399275786,1766229040510,-251.83586894,0.00013849,2]
[399275787,1766229040519,-639.72265797,0.00013893,2]
[399275788,1766229040529,-500.0,0.00014,2]
[399275789,1766229040538,-1591.28,0.00014052,2]
[399275790,1766229040547,-229.49,0.00014073,2]
[399275791,1766229040556,-21397.79044773,0.00014093,2]
[399275792,1766229040565,-151.0,0.00014267,2]
[399275793,1766229040574,-151.0,0.00014272,2]
[399275794,1766229040583,-151.0,0.000143,2]
[399275795,1766229040592,-208.16009032,0.00014321,2]
[399275796,1766229040601,-1000.0,0.00014321,2]
[399275797,1766229040610,-1000.78461254,0.00014321,2]
[399275798,1766229040619,-572.75082077,0.00014321,2]
[399275799,1766229040629,-1000.0,0.00014321,2]
[399275800,1766229040638,-500.50034776,0.00014321,2]
[399275801,1766229040647,-535.09556247,0.00014321,2]
[399275802,1766229040656,-1000.0,0.00014321,2]
[399275803,1766229040665,-1000.84503146,0.00014321,2]
[399275804,1766229040675,-1000.0,0.00014321,2]
[399275805,1766229040684,-500.31513524,0.00014321,2]
[399275806,1766229040694,-453.43519306,0.00014321,2]
[399275807,1766229040703,-1000.0,0.00014321,2]
[399275808,1766229040712,-1000.0,0.00014321,2]
[399275809,1766229040721,-1002.93994495,0.00014321,2]
[399275810,1766229040730,-500.48342927,0.00014321,2]
[399275811,1766229040740,-1135.18911943,0.00014321,2]
[399275812,1766229040749,-1000.0,0.00014321,2]
[399275813,1766229040759,-1000.0,0.00014321,2]
[399275814,1766229040768,-1000.0,0.00014321,2]
[399275815,1766229040777,-1000.0,0.00014321,2]
[399275816,1766229040786,-594.53896978,0.00014321,2]
[399275817,1766229040795,-1000.0,0.00014321,2]
[399275818,1766229040804,-1000.0,0.00014321,2]
[399275819,1766229040813,-1000.0,0.00014321,2]
[399275820,1766229040822,-1002.74001595,0.00014321,2]
[399275821,1766229040832,-1000.0,0.00014321,2]
[399275822,1766229040841,-1000.0,0.00014321,2]
[399275823,1766229040850,-627.27365114,0.00014321,2]
[399275824,1766229040859,-1591.28,0.00014326,2]
[399275825,1766229040868,-200.0,0.00014327,2]
[399275826,1766229040877,-500.0,0.00014327,2]
[399275827,1766229040886,-200.0,0.00014327,2]
[399275828,1766229040895,-232.85,0.00014394,2]
[399275829,1766229040904,-639.72265797,0.00014494,2]
[399275830,1766229040914,-21397.79044773,0.00014561,2]
[399275831,1766229040927,-1591.28,0.000146,2]
[399275832,1766229040937,-1852.42,0.0001473,2]
[399275833,1766229040946,-500.0,0.00014767,2]
[399275834,1766229040955,-433.0,0.00014787,2]
[399275835,1766229040965,-229.49,0.00014814,2]
[399275836,1766229040974,-1000.0,0.00014825,2]
[399275837,1766229040983,-1500.0,0.00014868,2]
[399275838,1766229040996,-1500.0,0.00014868,2]
[399275839,1766229041006,-1001.91769362,0.00014868,2]
[399275840,1766229041016,-1500.0,0.00014868,2]
[399275841,1766229041025,-502.20443143,0.00014868,2]
[399275842,1766229041034,-1501.18432329,0.00014868,2]
[399275843,1766229041044,-1501.51415398,0.00014868,2]
[399275844,1766229041053,-1001.58945381,0.00014868,2]
[399275845,1766229041062,-1500.0,0.00014868,2]
[399275846,1766229041071,-1500.0,0.00014868,2]
[399275847,1766229041080,-1503.97714891,0.00014868,2]
[399275848,1766229041090,-1500.0,0.00014868,2]
[399275849,1766229041099,-1502.00400434,0.00014868,2]
[399275850,1766229041108,-1500.0,0.00014868,2]
[399275851,1766229041119,-1211.67995912,0.00014868,2]
[399275852,1766229041129,-1591.28,0.00014874,2]
[399275853,1766229041138,-200.0,0.00014875,2]
[399275854,1766229041147,-500.0,0.00014875,2]
[399275855,1766229041156,-200.0,0.00014875,2]
[399275856,1766229041165,-500.0,0.00014909,2]
[399275857,1766229041174,-58149.65,0.00014975,2]
[399275858,1766229041184,-500.0,0.00015028,2]
[399275859,1766229041193,-500.0,0.00015028,2]
[399275860,1766229041202,-21397.79044773,0.00015029,2]
[399275861,1766229041413,-639.72265797,0.00015096,2]
[399275862,1766229041423,-1591.28,0.00015148,2]
[399275863,1766229041432,-1000.0,0.00015159,2]
[399275864,1766229041442,-1000.0,0.00015159,2]
[399275865,1766229041451,-1000.0,0.00015159,2]
[399275866,1766229041459,-794.454,0.00015159,2]
[399275867,1766229041469,-160.33063992,0.00015288,2]
[399275868,1766229041478,-155.64705311,0.00015288,2]
[399275869,1766229041487,-158.48329942,0.00015288,2]
[399275870,1766229041497,-156.76422926,0.00015288,2]
[399275871,1766229041506,-150.0,0.00015288,2]
[399275872,1766229041515,-151.72084113,0.00015288,2]
[399275873,1766229041524,-157.75435091,0.00015288,2]
[399275874,1766229041534,-152.11986511,0.00015288,2]
[399275875,1766229041544,-150.82546103,0.00015288,2]
[399275876,1766229041553,-155.96693599,0.00015288,2]
[399275877,1766229041562,-151.68546767,0.00015288,2]
[399275878,1766229041571,-152.94375339,0.00015288,2]
[399275879,1766229041580,-152.70737667,0.00015288,2]
[399275880,1766229041589,-500.0,0.00015416,2]
[399275881,1766229041598,-500.0,0.00015416,2]
[399275882,1766229041608,-2000.0,0.00015416,2]
[399275883,1766229041617,-1188.04388907,0.00015416,2]
[399275884,1766229041626,-1503.12423045,0.00015416,2]
[399275885,1766229041635,-1393.70965969,0.00015416,2]
[399275886,1766229041645,-2000.0,0.00015416,2]
[399275887,1766229041654,-1501.47727649,0.00015416,2]
[399275888,1766229041663,-2002.17420355,0.00015416,2]
[399275889,1766229041672,-207.4,0.00015422,2]
[399275890,1766229041681,-1591.28,0.00015422,2]
[399275891,1766229041691,-200.0,0.00015423,2]
[399275892,1766229041700,-500.0,0.00015423,2]
[399275893,1766229041710,-200.0,0.00015423,2]
[399275894,1766229041719,-21397.79044773,0.00015497,2]
[399275895,1766229041728,-10000.0,0.00015501,2]
[399275896,1766229041737,-229.49,0.00015555,2]
[399275897,1766229041746,-151.49542101,0.00015594,2]